[Event "Przeworsk GM norm 2022"]
[Site "Przeworsk"]
[Date "2022.05.31"]
[Round "3.5"]
[White "Teclaf, Pawel"]
[Black "Fus, Jakub"]
[Result "1-0"]
[ECO "B13"]
[WhiteElo "2537"]
[BlackElo "2378"]
[Annotator "TA"]
[PlyCount "117"]
[EventDate "2022.05.30"]
[EventType "tourn"]
[EventCountry "POL"]
[SourceTitle "playchess.com"]
[Source "ChessBase"]
[SourceQuality "1"]
[TimeControl "40/5400+30:1800+30"]

{[%evp 14,117,11,9,16,17,16,18,11,9,13,9,9,0,2,0,0,-5,15,15,24,25,25,30,23,22,26,21,35,11,19,11,22,18,21,9,4,1,20,20,20,27,26,9,22,11,13,13,13,13,8,4,7,0,19,0,44,44,56,58,64,57,63,55,64,75,209,208,199,194,184,192,201,205,407,390,401,379,469,467,423,458,504,496,611,601,466,436,29967,29967,29968,29967,29968,29969,29971,29972,29975,29975,29976,29977,29977,29977,29978,29976,29936,12253]} 1. e4 {[%emt 0:00:03]} c6 {[%emt 0:01:02]} 2. d4 {[%emt 0:00:05]} d5 {[%emt 0:00:13]} 3. exd5 {[%emt 0:00:05]} cxd5 {[%emt 0:00:07]} 4. Bd3 {[%emt 0:00:03]} Nc6 {[%emt 0:00:22]} 5. c3 {[%emt 0:00:06]} Nf6 {[%emt 0:00:23]} 6. h3 {[%emt 0:00:05]} e5 {[%emt 0:02:40]} 7. dxe5 {[%emt 0:00:24]} Nxe5 {[%emt 0:00:08]} 8. Nf3 {[%emt 0:00:08]} Nxd3+ {[%emt 0:01:04] B13: Caro-Kann: Exchange Variation and Panov-Botvinnik Attack.} 9. Qxd3 {[%emt 0:00:19]} Bd6 {[%emt 0:02:28] The modern move.} 10. O-O {[%emt 0:02:50]} O-O {[%emt 0:00:12] The position is equal.} 11. Bg5 {[%emt 0:09:53]} h6 $1 {[%emt 0:15:06]} 12. Bxf6 {[%emt 0:07:12]} Qxf6 {[%emt 0:00:07]} 13. Nbd2 {[%emt 0:00:25]} Rd8 {[%emt 0:03:19] [#]} 14. Rad1 $146 {[%emt 0:08:13]} ({Predecessor:} 14. Rfe1 Bf5 15. Qd4 Qxd4 16. Nxd4 Bd7 17. N2f3 Re8 18. Rxe8+ Rxe8 19. Re1 Re4 20. Kf1 {1-0 (73) Studer,N (2579)-Macovei,A (2453) Chess.com INT 2021}) 14... Bf5 {[%emt 0:01:39]} 15. Qd4 {[%emt 0:02:35]} Qxd4 {[%emt 0:00:53]} 16. Nxd4 {[%emt 0:00:09]} Bd3 {[%emt 0:00:54] A strong pair of Bishops.} 17. Rfe1 {[%emt 0:00:22]} Re8 {[%emt 0:01:03]} 18. Nf1 {[%emt 0:06:44] And now Rxe8+ would win.} Rxe1 {[%emt 0:23:41]} 19. Rxe1 {[%emt 0:01:45]} Rd8 {[%emt 0:00:26]} 20. Rd1 {[%emt 0:04:26]} Be4 {[%emt 0:03:05]} 21. Nd2 {[%emt 0:11:28]} Bg6 {[%emt 0:06:07]} 22. N2b3 {[%emt 0:02:01]} a6 {[%emt 0:07:22]} 23. Kf1 {[%emt 0:01:54]} Be7 {[%emt 0:05:42]} 24. Ne2 {[%emt 0:09:01]} Bc2 {[%emt 0:02:35]} 25. Rd2 {[%emt 0:08:47]} Bxb3 {[%emt 0:04:44]} (25... Bb1 $5 {[%cal Rb1a2]}) 26. axb3 $11 {[%emt 0:03:03][%mdl 4096] Endgame KRB-KRN} Bg5 {[%emt 0:00:03] Inhibits Nf4.} 27. Rd1 {[%emt 0:01:20]} Kf8 {[%emt 0:00:20]} 28. b4 {[%emt 0:01:07]} Ke7 {[%emt 0:01:23]} 29. Nd4 {[%emt 0:05:01]} Bf6 {[%emt 0:00:26]} 30. Nb3 {[%emt 0:00:24]} Kd6 {[%emt 0:00:22]} 31. Ke2 {[%emt 0:00:31]} Kc6 {[%emt 0:02:04]} 32. Kd3 {[%emt 0:00:23]} Re8 {[%emt 0:00:22]} 33. Ra1 {[%emt 0:02:23]} Ra8 {[%emt 0:00:55]} 34. Ra5 {[%emt 0:00:57]} Rd8 {[%emt 0:02:12]} 35. Nd4+ {[%emt 0:03:11]} Kb6 {[%emt 0:05:03]} 36. Nf5 {[%emt 0:02:17]} Ka7 {[%emt 0:00:17]} 37. g4 {[%emt 0:03:53][%cal Bg2g4,Bg4g5][%mdl 32]} b6 {[%emt 0:01:39]} 38. Ra1 {[%emt 0:00:11]} Kb7 {[%emt 0:00:28]} 39. f4 {[%emt 0:01:07]} g6 {[%emt 0:03:00] Loses the game.} (39... Rf8 $16 {was called for.}) 40. Nxh6 $18 {[%emt 0:00:00]} Rh8 {[%emt 0:00:00]} 41. g5 {[%emt 0:07:23] Black must now prevent Re1.} ({Don't play} 41. Nxf7 $6 Rxh3+ 42. Kc2 Rh7 $16) 41... Bg7 {[%emt 0:00:13]} 42. Nxf7 {[%emt 0:00:08]} Rxh3+ {[%emt 0:01:25]} 43. Kc2 {[%emt 0:02:30] Strongly threatening Nd8+.} d4 $2 {[%emt 0:02:05]} (43... Kc7 44. Rxa6 d4) 44. Nd8+ {[%emt 0:02:34]} Kc8 {[%emt 0:01:12]} 45. Ne6 {[%emt 0:00:22]} Bh8 {[%emt 0:01:03][%cal Rd4c3]} 46. cxd4 {[%emt 0:03:32]} Kd7 {[%emt 0:01:00]} 47. Nf8+ {[%emt 0:03:10]} Kc6 {[%emt 0:00:05]} 48. Rd1 {[%emt 0:01:23]} Kd5 {[%emt 0:01:42]} 49. Nxg6 {[%emt 0:00:14]} Bxd4 {[%emt 0:00:07]} 50. Ne7+ {[%emt 0:00:30]} ({Less strong is} 50. f5 Rh2+ 51. Kd3 Rh3+ 52. Ke2 Re3+ 53. Kf1 Ke4 $18) 50... Ke4 {[%emt 0:00:07] [#]} (50... Ke6 $18 51. Rxd4 Kxe7) 51. Rxd4+ $1 {[%emt 0:00:07] White mates.} Kxd4 {[%emt 0:00:05] [#] KR-KN} 52. g6 $1 {[%emt 0:00:02]} Rh2+ {[%emt 0:02:36]} 53. Kb1 {[%emt 0:00:31]} Rg2 {[%emt 0:00:50]} 54. g7 {[%emt 0:00:07]} Rxg7 {[%emt 0:00:52]} 55. Nf5+ {[%emt 0:00:04]} Ke4 {[%emt 0:00:03]} 56. Nxg7 {[%emt 0:00:04]} Kxf4 {[%emt 0:00:03]} 57. Kc2 {[%emt 0:02:03]} Ke5 {[%emt 0:00:03]} 58. Kc3 {[%emt 0:00:04]} Kd5 {[%emt 0:00:03]} 59. Nf5 {[%emt 0:00:08] Weighted Error Value: White=0.02 (flawless) /Black=0.24 (precise)} (59. Kb3 $142 Kc6 60. Kc4 b5+ 61. Kd4 Kb6 62. Ne6 Kc6 63. Nc5 Kc7 64. Nxa6+ Kd6 65. Ke4) 1-0

[Event "Przeworsk GM norm 2022"]
[Site "Przeworsk"]
[Date "2022.06.01"]
[Round "4.1"]
[White "Stefansson, Hannes"]
[Black "Fus, Jakub"]
[Result "1-0"]
[ECO "C75"]
[WhiteElo "2534"]
[BlackElo "2378"]
[Annotator "TA"]
[PlyCount "147"]
[EventDate "2022.05.30"]
[EventType "tourn"]
[EventCountry "POL"]
[SourceTitle "playchess.com"]
[Source "ChessBase"]
[SourceQuality "1"]
[TimeControl "40/5400+30:1800+30"]

{[%evp 15,147,46,51,43,47,53,53,53,53,53,53,39,58,58,94,94,94,95,105,75,83,77,84,81,75,81,92,85,83,83,78,82,101,93,108,105,104,89,137,113,152,157,211,215,209,197,378,168,150,100,103,31,93,60,80,95,184,179,336,181,371,350,347,328,301,154,183,44,107,34,37,43,108,59,74,59,80,46,108,110,172,150,306,346,314,343,331,338,322,317,328,222,238,236,232,208,310,297,290,277,243,250,219,135,404,193,455,416,615,610,831,817,838,765,1175,1180,1046,1172,964,886,1207,1186,887,753,2545,2194,1600,1560,2727,2750,4631,2706,4618,4618]} 1. e4 {[%emt 0:00:09]} e5 {[%emt 0:00:14]} 2. Nf3 {[%emt 0:00:20]} Nc6 {[%emt 0:00:17]} 3. Bb5 {[%emt 0:00:24]} a6 {[%emt 0:00:19]} 4. Ba4 {[%emt 0:00:14]} d6 {[%emt 0:00:14]} 5. c3 {[%emt 0:00:59]} Bd7 {[%emt 0:00:28]} 6. d4 {[%emt 0:01:47][%cal Bd2d4,Bd4d5][%mdl 32]} Nge7 {[%emt 0:11:25]} 7. Be3 {[%emt 0:12:26]} Ng6 {[%emt 0:02:02]} 8. h4 {[%emt 0:00:55][%cal Bh2h4,Bh4h5][%mdl 32]} Be7 {[%emt 0:05:54]} 9. h5 {[%emt 0:04:59] C75: Ruy Lopez: Deferred Steinitz: 5 c3 Bd7 6 d4 without ...g6.} Nh4 {[%emt 0:01:51]} 10. Nxh4 {[%emt 0:00:07]} Bxh4 {[%emt 0:00:04]} 11. d5 {[%emt 0:01:51] White is slightly better.} Nb8 {[%emt 0:00:17]} 12. Bxd7+ {[%emt 0:00:45]} Nxd7 {[%emt 0:00:05]} 13. Qg4 {[%emt 0:00:22][%csl LRg7,LRh4]} Bf6 {[%emt 0:00:07]} 14. Nd2 {[%emt 0:07:01] [#]} Nc5 $146 {[%emt 0:10:40]} ({Predecessor:} 14... O-O 15. Qh3 Be7 16. O-O-O b5 17. Kb1 a5 18. Nf1 Nb6 19. Qg4 Qc8 20. Qxc8 Rfxc8 {1-0 (37) Vera Siguenas,D (2455)-Bachmann,A (2629) Antofagasta 2015}) 15. Bxc5 {[%emt 0:06:59]} dxc5 {[%emt 0:00:05]} 16. Nc4 {[%emt 0:01:15]} Qd7 {[%emt 0:11:19]} 17. Qg3 {[%emt 0:00:26]} O-O {[%emt 0:02:20]} 18. a4 {[%emt 0:11:44]} (18. Nxe5 Bxe5 19. Qxe5 Rae8 $15) 18... Rfe8 {[%emt 0:05:19]} 19. a5 {[%emt 0:01:11]} Qb5 {[%emt 0:01:35]} 20. Qd3 {[%emt 0:00:37]} Bg5 {[%emt 0:06:57]} 21. Rh3 {[%emt 0:01:59]} Rad8 {[%emt 0:03:48]} 22. Rf3 {[%emt 0:03:23]} Qd7 {[%emt 0:08:31]} 23. Qe2 {[%emt 0:02:13]} g6 {[%emt 0:01:32]} 24. Kd1 {[%emt 0:04:45]} c6 {[%emt 0:12:39]} 25. Nb6 {[%emt 0:06:46]} Qe6 {[%emt 0:02:59][%cal Rc6d5]} 26. c4 {[%emt 0:01:35]} Rd6 {[%emt 0:01:46]} (26... gxh5 $142 27. Rf5 Qg6) 27. Rd3 {[%emt 0:03:12]} Qe7 {[%emt 0:01:10]} 28. Kc2 {[%emt 0:00:54]} f5 {[%emt 0:03:53]} (28... Red8 $16 29. Rg3 h6) 29. hxg6 $18 {[%emt 0:01:37]} hxg6 {[%emt 0:02:03]} 30. Rh1 {[%emt 0:01:00]} fxe4 $2 {[%emt 0:03:00]} (30... Bf6 31. exf5 Bg7) 31. Rdh3 {[%emt 0:01:07]} (31. Rg3 $142) 31... Bf6 {[%emt 0:00:04]} 32. Qg4 {[%emt 0:03:08]} (32. Qxe4 Bg7 $16) (32. Re3 $142) 32... Bg7 $16 {[%emt 0:00:12]} 33. Re3 {[%emt 0:03:41]} (33. Qxe4 $16 Rf8 34. Rf3) 33... Qf7 {[%emt 0:01:04]} ({Better is} 33... Rf8 $1 $14) 34. Qh4 $36 {[%emt 0:01:24][%mdl 2048] White is pushing. 0x0.001761e60d29dp-1022s more active pieces.} Rf6 {[%emt 0:00:13]} 35. Re2 {[%emt 0:01:04]} (35. Rxe4 Rxf2+ 36. Kb3 cxd5 37. Nxd5 Rxg2 $15) 35... e3 {[%emt 0:00:05]} (35... Rd8 $16 {might work better.}) 36. fxe3 $18 {[%emt 0:00:23]} e4 $2 {[%emt 0:00:03]} (36... Rd8 37. e4 Kf8) 37. Rd2 {[%emt 0:00:51]} (37. dxc6 $142 bxc6 38. Qh7+ Kf8 39. Rd1) 37... cxd5 $2 {[%emt 0:01:23]} (37... Rd8 38. Kb3 Rfd6) 38. Nxd5 {[%emt 0:00:31]} Rf5 {[%emt 0:00:40]} 39. g4 {[%emt 0:02:18] Prevents Rh5.} Rf3 {[%emt 0:02:12]} 40. Rdh2 {[%emt 0:00:00]} ({White should try} 40. Qh7+ $18 Kf8 41. Nb6) 40... Qe6 {[%emt 0:00:00]} 41. Kb3 {[%emt 0:16:27]} ({Only move:} 41. Kb1 $1 $18 {Nc7 is the strong threat.} Qe5 42. Rd1 (42. Qh7+ Kf7 $11)) 41... Qe5 {[%emt 0:07:15] Against Nc7} (41... Kf7 $1 $14) 42. g5 {[%emt 0:07:44]} (42. Qh7+ $6 Kf7 $11) (42. Rd2 $16) 42... Kf7 $14 {[%emt 0:03:22]} 43. Qg4 {[%emt 0:00:17] Threatens to win with Qd7+. The board is on fire.} (43. Qh7 Qd4 44. Nc3 Rxe3 45. Rf1+ Rf3 $17) 43... Qf5 {[%emt 0:01:01] Inhibits Qd7+.} (43... Rd8 $14) 44. Qg1 {[%emt 0:00:27]} (44. Qg2 $1 $16) 44... Re5 $1 {[%emt 0:03:23]} 45. Rd2 {[%emt 0:02:50]} Qxg5 {[%emt 0:01:37]} 46. Qd1 {[%emt 0:00:12] Black must now prevent Ka2.} Qf5 {[%emt 0:02:18] [#]} (46... Rxd5 $14 47. cxd5 Rxe3+ 48. Ka2 Rf3) 47. Ka2 $1 $16 {[%emt 0:00:36]} g5 {[%emt 0:02:47]} (47... Re8 $16) 48. Rg1 {[%emt 0:00:13]} Re6 $2 {[%emt 0:01:49]} (48... Kg8 $16 49. Rdg2 Bh6) 49. Qb3 $18 {[%emt 0:01:00]} Rd6 {[%emt 0:09:51]} 50. Qxb7+ Qd7 {[%emt 0:00:38]} 51. Qxd7+ {[%emt 0:01:01]} Rxd7 {[%emt 0:00:02]} 52. Rxg5 {[%emt 0:00:14]} Bh6 {[%emt 0:00:07]} 53. Rh5 {[%emt 0:01:40]} Bxe3 {[%emt 0:01:06] [#]} 54. Re2 {[%emt 0:06:18]} Bd4 {[%emt 0:00:13]} (54... Kg6 $2 55. Re5 Bd4 56. R5xe4) 55. Rh7+ {[%emt 0:00:20]} Ke6 {[%emt 0:02:11]} (55... Bg7 $142 56. Rhh2 (56. Rxe4 Rf2 $16) 56... e3) 56. Rxe4+ {[%emt 0:00:13]} Kf5 {[%emt 0:00:02]} 57. Ree7 {[%emt 0:03:11]} ({Not} 57. Rxd7 Kxe4 58. Rb7 Rf2 $14) ({Weaker is} 57. Rhh4 Rf2 $16) 57... Rxe7 {[%emt 0:00:02]} 58. Rxe7 {[%emt 0:00:08][%mdl 4096] Endgame KRB-KRN} Rh3 {[%emt 0:00:34]} 59. Re2 {[%emt 0:00:27] Against Rh2} ({Don't play} 59. Ra7 $6 Rh2 $16) 59... Kg4 $2 {[%emt 0:00:25][%mdl 8192] Loses the game.} (59... Rh6 $16 {is a better defense.} 60. Ka3 Rh3+ 61. Ka2 Rh6) 60. Nc7 {[%emt 0:00:28]} (60. Re6 $142) 60... Rh7 $2 {[%emt 0:02:15]} (60... Kf3 {was necessary.} 61. Re6 Rh2) 61. Nxa6 {[%emt 0:00:19]} Ra7 {[%emt 0:00:01]} (61... Kf5 $142 62. b4 cxb4 63. Nxb4 Bc5) 62. Re6 {[%emt 0:00:13] White is clearly winning.} Kf5 {[%emt 0:00:06]} 63. Rc6 {[%emt 0:01:15]} Kf4 {[%emt 0:00:14]} 64. Ka3 {[%emt 0:00:46] aiming for b3.} Ke3 {[%emt 0:00:09]} 65. b3 {[%emt 0:00:32]} Kd2 {[%emt 0:00:55]} 66. Ka4 {[%emt 0:00:26]} Bc3 {[%emt 0:00:04]} 67. Kb5 {[%emt 0:03:45]} Kc2 {[%emt 0:00:13]} 68. Rc7 {[%emt 0:00:29]} Ra8 {[%emt 0:00:45]} 69. Rh7 {[%emt 0:00:18]} Kxb3 {[%emt 0:02:12]} 70. Nxc5+ {[%emt 0:00:07]} Kc2 {[%emt 0:00:04]} 71. a6 {[%emt 0:00:15][%cal Ba5a6,Ba6a7][%mdl 32] Hoping for Na4.} Bd4 {[%emt 0:00:05]} 72. Na4 {[%emt 0:02:01] Strongly threatening c5.} Kd3 {[%emt 0:00:17]} 73. c5 {[%emt 0:00:16]} Rc8 {[%emt 0:00:23]} 74. a7 {[%emt 0:00:21] Weighted Error Value: White=0.34/Black=0.39} 1-0

[Event "Przeworsk GM norm 2022"]
[Site "Przeworsk"]
[Date "2022.06.01"]
[Round "4.2"]
[White "Omelja, Artem"]
[Black "Teclaf, Pawel"]
[Result "1/2-1/2"]
[ECO "A40"]
[WhiteElo "2515"]
[BlackElo "2537"]
[Annotator "TA"]
[PlyCount "117"]
[EventDate "2022.05.30"]
[EventType "tourn"]
[EventCountry "POL"]
[SourceTitle "playchess.com"]
[Source "ChessBase"]
[SourceQuality "1"]
[TimeControl "40/5400+30:1800+30"]

{[%evp 9,117,42,32,33,45,27,19,17,19,29,22,0,0,-20,-14,-50,-30,-45,0,-4,-5,-12,16,11,14,19,20,10,18,10,8,7,23,15,26,17,37,32,39,37,38,22,29,22,38,0,24,32,44,36,73,6,10,14,42,32,39,35,35,33,46,37,53,33,40,14,14,18,18,14,17,14,19,20,19,25,59,58,84,0,9,0,79,7,64,0,14,14,80,59,52,60,52,0,0,0,0,0,0,0,0,0,0,0,0,0,0,0,0,0]} 1. d4 {[%emt 0:00:06]} e6 {[%emt 0:00:03]} 2. c4 {[%emt 0:00:11]} b6 {[%emt 0:00:08]} 3. e4 {[%emt 0:00:09]} Bb4+ {[%emt 0:00:04]} 4. Bd2 {[%emt 0:00:10]} Bxd2+ {[%emt 0:00:05]} 5. Qxd2 {[%emt 0:00:11]} d5 {[%emt 0:00:05]} 6. Bd3 {[%emt 0:00:50] C01: French: Exchange Variation.} Nc6 {[%emt 0:00:06]} 7. Nf3 {[%emt 0:00:34]} (7. cxd5 {looks sharper.} exd5 8. exd5 Qxd5 9. Nc3) 7... dxe4 {[%emt 0:02:39]} 8. Bxe4 {[%emt 0:00:09]} Bb7 {[%emt 0:00:03]} 9. O-O {[%emt 0:03:14]} Nf6 {[%emt 0:02:07] [#]} 10. Bc2 $146 {[%emt 0:00:10]} (10. Bxc6+ $5 Bxc6 11. Ne5 $14) ({Predecessor:} 10. Bxc6+ Bxc6 11. d5 exd5 12. Re1+ Kf8 13. Nc3 dxc4 14. Qf4 Bxf3 15. Qxf3 c6 16. Rad1 {0-1 (53) Carow,J (2444)-Meier,G (2620) Playchess.com INT 2020}) 10... O-O {[%emt 0:02:08]} 11. Qc3 {[%emt 0:00:29]} Qd6 {[%emt 0:03:43]} 12. Na3 {[%emt 0:01:39]} Rfd8 {[%emt 0:04:37][%cal Rc6d4]} 13. Rad1 {[%emt 0:04:39]} Qb4 {[%emt 0:08:58]} 14. Nb1 {[%emt 0:09:31]} Qxc3 {[%emt 0:10:51]} 15. Nxc3 {[%emt 0:00:08]} Na5 {[%emt 0:04:29]} 16. Ne5 {[%emt 0:00:55]} Nc6 {[%emt 0:00:04]} 17. Nxc6 {[%emt 0:00:33]} Bxc6 {[%emt 0:00:12]} 18. Rd2 {[%emt 0:00:12]} Rd7 {[%emt 0:04:53]} 19. f3 {[%emt 0:00:09]} Rad8 {[%emt 0:01:45]} 20. Rfd1 {[%emt 0:00:11]} a6 {[%emt 0:04:23]} 21. Kf2 {[%emt 0:00:26]} b5 {[%emt 0:04:02]} (21... h6 {feels hotter.} 22. Ke3 b5 23. b3 Kf8) 22. b3 {[%emt 0:00:16]} bxc4 {[%emt 0:01:42]} (22... Kf8 {keeps more tension.} 23. Ke3 h6 24. g3 Rd6) 23. bxc4 {[%emt 0:00:07]} Rb8 {[%emt 0:00:06]} 24. Bb3 {[%emt 0:00:55]} Kf8 {[%emt 0:06:42]} 25. Ke3 {[%emt 0:00:11]} h5 {[%emt 0:01:21]} 26. h3 {[%emt 0:02:37]} a5 {[%emt 0:00:58]} 27. Rb1 {[%emt 0:00:20]} Ke7 {[%emt 0:03:33]} 28. Rdb2 {[%emt 0:01:21]} Rbd8 {[%emt 0:00:15]} 29. Ne2 {[%emt 0:02:05][%cal Od4d5]} Ne8 {[%emt 0:06:36][%cal Bf6e8,Be8d6,Bd6c8,Bc8b6][%mdl 32] [#]} 30. Bc2 {[%emt 0:00:17]} (30. d5 $1 $16 {[%cal Rd5c6]} exd5 31. Nd4) 30... Nd6 $11 {[%emt 0:01:48]} 31. Bd3 {[%emt 0:00:09]} Nc8 {[%emt 0:01:04]} 32. Rb8 {[%emt 0:02:24]} Nb6 {[%emt 0:01:12]} 33. Rxd8 {[%emt 0:00:21]} Rxd8 {[%emt 0:00:46]} 34. h4 {[%emt 0:00:32]} Rb8 {[%emt 0:21:00][%cal Ob6c4]} 35. Nc3 {[%emt 0:00:29]} Rd8 {[%emt 0:00:20]} 36. a3 {[%emt 0:00:34]} Ra8 {[%emt 0:01:09]} 37. c5 {[%emt 0:11:31]} Nd5+ {[%emt 0:01:21]} 38. Nxd5+ {[%emt 0:00:32]} Bxd5 {[%emt 0:00:43][%mdl 4096] Endgame KRB-KRB} 39. Be4 {[%emt 0:00:43]} Kd7 {[%emt 0:02:55]} 40. a4 {[%emt 0:00:00]} Bc6 {[%emt 0:00:00]} 41. Bxc6+ {[%emt 0:10:19]} Kxc6 {[%emt 0:01:11] KR-KR} 42. Rb5 {[%emt 0:00:09]} g6 {[%emt 0:06:52]} 43. Ke4 {[%emt 0:01:31]} f6 {[%emt 0:00:54] [#]} 44. Rb1 {[%emt 0:02:31]} (44. f4 $1 $16) 44... Re8 {[%emt 0:04:20]} 45. Rb5 {[%emt 0:00:40]} (45. f4 $11) 45... Ra8 $16 {[%emt 0:00:27]} 46. Kd3 {[%emt 0:00:56]} ({Better is} 46. f4 $16) 46... Kd5 {[%emt 0:02:41]} (46... Rg8 $11) 47. Kc3 {[%emt 0:00:18]} ({White should try} 47. f4 $14) 47... Kc6 {[%emt 0:07:41]} 48. Kc4 {[%emt 0:00:11]} Kd7 {[%emt 0:00:28]} (48... g5 $1 $11) 49. Rb7 {[%emt 0:02:21]} Kc6 {[%emt 0:01:36]} 50. Rb2 {[%emt 0:00:43]} Kd7 {[%emt 0:01:29]} 51. d5 {[%emt 0:01:47]} ({White should play} 51. f4 $14) 51... exd5+ $11 {[%emt 0:00:43] The position is equal.} 52. Kxd5 {[%emt 0:00:08]} c6+ $1 {[%emt 0:00:30]} 53. Kc4 {[%emt 0:02:16]} Kc7 {[%emt 0:00:12]} 54. Re2 {[%emt 0:00:56]} Rb8 {[%emt 0:00:34]} 55. Re7+ {[%emt 0:00:42]} Kd8 {[%emt 0:00:03]} 56. Re6 {[%emt 0:00:13][%csl LRc6,LRf6]} Rb4+ {[%emt 0:00:03]} 57. Kc3 {[%emt 0:00:10]} Rxh4 {[%emt 0:02:11]} 58. Rxf6 {[%emt 0:00:55]} g5 {[%emt 0:02:48]} 59. Rxc6 {[%emt 0:04:23] Weighted Error Value: White=0.14 (very precise) /Black=0.12 (very precise)} 1/2-1/2

[Event "Przeworsk GM norm 2022"]
[Site "Przeworsk"]
[Date "2022.06.01"]
[Round "4.3"]
[White "Mis, Mieszko"]
[Black "Mikrut, Dariusz"]
[Result "1-0"]
[ECO "C44"]
[WhiteElo "2388"]
[BlackElo "2361"]
[Annotator "TA"]
[PlyCount "87"]
[EventDate "2022.05.30"]
[EventType "tourn"]
[EventCountry "POL"]
[SourceTitle "playchess.com"]
[Source "ChessBase"]
[SourceQuality "1"]
[TimeControl "40/5400+30:1800+30"]

{[%evp 17,87,47,47,47,65,67,87,87,100,87,78,55,85,74,82,89,79,87,79,84,96,98,100,70,74,57,70,63,58,60,66,66,69,61,65,70,78,67,69,53,37,52,42,37,172,165,172,172,172,129,681,95,478,402,783,664,679,247,4669,2204,5110,4881,5202,4760,5093,3063,29969,29970,29966,12840,6240,5950]} 1. e4 {[%emt 0:00:06]} e5 {[%emt 0:00:18]} 2. Nf3 {[%emt 0:00:14]} Nc6 {[%emt 0:00:10]} 3. d4 {[%emt 0:00:15]} exd4 {[%emt 0:00:05]} 4. Nxd4 {[%emt 0:00:05]} Nf6 {[%emt 0:00:11]} 5. Nc3 {[%emt 0:00:23]} d6 {[%emt 0:03:02]} 6. Bb5 {[%emt 0:02:30]} Bd7 {[%emt 0:00:07]} 7. O-O {[%emt 0:02:42]} Nxd4 {[%emt 0:01:12]} 8. Bxd7+ $1 {[%emt 0:00:58] 8.Bxd7+ scores better than 8.Qxd4.} Qxd7 {[%emt 0:00:15]} 9. Qxd4 {[%emt 0:00:05]} Be7 $1 {[%emt 0:00:05]} 10. Rd1 {[%emt 0:01:05][%cal Bf1d1,Bd1e1,Be1e4][%mdl 32] C62: Ruy Lopez: Steinitz Defence.} Qe6 {[%emt 0:27:49] Against e5} 11. Nd5 {[%emt 0:00:59]} Nxd5 {[%emt 0:00:17]} 12. exd5 {[%emt 0:00:47] [#] White is better.} Qf5 $146 {[%emt 0:03:16]} ({Predecessor:} 12... Qf6 13. Qa4+ Kf8 14. Qd7 Bd8 15. Re1 g5 16. c3 Kg7 17. Be3 {1-0 (17) Conde Poderoso,A (2333)-Pibernik,D (1702) ICCF email 2016}) 13. Re1 {[%emt 0:05:18]} Kf8 {[%emt 0:01:33]} 14. Qc4 {[%emt 0:04:16]} Qd7 {[%emt 0:01:55]} 15. Be3 {[%emt 0:02:07]} Bf6 {[%emt 0:00:29]} 16. Bd4 {[%emt 0:03:31]} Bxd4 {[%emt 0:02:15]} 17. Qxd4 {[%emt 0:00:03]} h5 {[%emt 0:00:34]} 18. Re4 {[%emt 0:06:23] 0x0.000866f7d7ccdp-1022s more active pieces. The black rooks are badly placed.} Rh6 {[%emt 0:10:29]} 19. Rae1 {[%emt 0:00:11]} Rf6 {[%emt 0:00:51]} 20. Qe3 {[%emt 0:01:44]} Kg8 {[%emt 0:07:59]} 21. Re8+ {[%emt 0:19:55]} Rxe8 {[%emt 0:02:27]} 22. Qxe8+ {[%emt 0:00:03]} Qxe8 {[%emt 0:00:07]} 23. Rxe8+ $14 {[%emt 0:00:02][%mdl 4096] Endgame KR-KR} Kh7 {[%emt 0:00:06]} 24. Re7 {[%emt 0:00:20]} Rf5 {[%emt 0:00:46]} 25. Rxc7 {[%emt 0:00:05]} Rxd5 {[%emt 0:00:08][%cal Rd5d1]} 26. Kf1 {[%emt 0:00:02]} Rb5 {[%emt 0:03:47]} 27. b3 {[%emt 0:00:05]} Kg6 {[%emt 0:00:04]} 28. Ke2 {[%emt 0:09:56]} Kf6 {[%emt 0:01:02]} 29. c4 {[%emt 0:06:05]} Re5+ {[%emt 0:10:02]} 30. Kd3 {[%emt 0:06:39]} Re7 {[%emt 0:00:19]} (30... Rf5 $14) 31. Rxe7 $18 {[%emt 0:00:03]} Kxe7 {[%emt 0:00:06] KP-KP} 32. Kd4 {[%emt 0:00:01]} Ke6 {[%emt 0:00:10]} 33. b4 {[%emt 0:00:02]} Ke7 $2 {[%emt 0:03:44][%mdl 8192]} (33... Kd7 $16) 34. Ke4 $2 {[%emt 0:04:49]} (34. h4 $18 {and the rest is easy.} Ke6 35. f3) 34... Ke6 $2 {[%emt 0:00:15][%mdl 8192] [#]} (34... Kd7 $16 {is tougher.}) 35. h4 $1 {[%emt 0:00:09]} Kf6 {[%emt 0:04:52]} (35... f5+ $142 36. Kd4 g6) 36. a4 {[%emt 0:01:38]} Ke6 {[%emt 0:01:45]} 37. a5 $2 {[%emt 0:00:36]} (37. f3 {Black must now prevent g4.} f6 38. Kf4) 37... Kf6 $2 {[%emt 0:02:24]} (37... f6 38. Kf4 g6) 38. Kd5 {[%emt 0:06:28]} Ke7 {[%emt 0:00:10]} 39. a6 {[%emt 0:00:01]} bxa6 {[%emt 0:08:22] [#]} 40. Kc6 $1 {[%emt 0:00:00]} Ke6 {[%emt 0:00:00]} 41. Kb7 {[%emt 0:00:25]} a5 {[%emt 0:08:20]} 42. bxa5 {[%emt 0:00:08]} Kd7 {[%emt 0:00:08]} 43. Kxa7 {[%emt 0:03:04] Kb6 would kill now.} Kc7 {[%emt 0:00:12]} 44. g3 {[%emt 0:00:19] Weighted Error Value: White=0.46/Black=0.83} 1-0